bitfinex-derivatives/quotes_SOLF0:USTF0_20250626
["timestamp","ask_amount","ask_price","bid_price","bid_amount"]
[1750903633277,38.36,145.98,145.95,6.8475]
[1750903634780,38.36,145.98,145.92,3.39430125]
[1750903635183,38.36,145.98,145.95,6.8474]
[1750903635377,38.36,145.98,145.92,9.57910248]
[1750903635685,38.36,145.98,145.96,6.8471]
[1750903637181,43.29536915,145.98,145.95,6.8478]
[1750903638184,38.36,145.98,145.95,6.8478]
[1750903638378,43.33144639,145.98,145.95,6.8478]
[1750903638588,4.97144639,145.97,145.9,127.2772]
[1750903638774,38.36,145.98,145.92,3.39430125]
[1750903638970,38.36,145.98,145.94,3.39430125]
[1750903639177,38.36,145.98,145.95,6.8477]
[1750903639677,38.36,145.98,145.96,6.8473]
[1750903639874,38.36,145.98,145.94,3.39430125]
[1750903640389,38.36,145.98,145.95,6.8478]
[1750903640983,6.8445,146.03,145.96,3.39430125]
[1750903641687,6.8446,146.02,145.96,5.81350125]
[1750903642188,6.8446,146.02,145.96,12.66070125]
[1750903642387,6.8452,146.01,145.96,12.66070125]
[1750903643189,11.81280776,146.02,145.97,6.8469]
[1750903643386,6.8447,146.02,145.97,6.8469]
[1750903643586,6.8453,146.01,145.96,5.81350125]
[1750903643986,6.8453,146.01,145.96,12.66080125]
[1750903644183,6.8453,146.01,145.96,2.4192]
[1750903644381,6.8453,146.01,145.97,3.39430125]
[1750903644576,6.8447,146.02,145.97,3.39430125]
[1750903645283,38.36,146.04,145.99,10.24030125]
[1750903646083,45.2038,146.04,145.99,10.24030125]
[1750903646590,38.36,146.04,145.99,3.39430125]
[1750903646888,6.8445,146.03,145.99,3.39430125]
[1750903647486,38.36,146.04,145.96,8.60400123]
[1750903647698,3.39430125,146.01,145.96,2.4192]
[1750903647984,6.8466,145.98,145.96,2.4192]
[1750903648592,6.8469,145.97,145.96,2.4192]
[1750903648797,3.39430125,145.99,145.92,38.16]
[1750903648995,41.55430125,145.99,145.92,38.16]
[1750903649292,6.8478,145.96,145.92,38.16]
[1750903649987,41.55430125,145.99,145.92,38.16]
[1750903650192,38.16,145.99,145.93,3.39430125]
[1750903650591,38.16,145.99,145.95,3.39430125]
[1750903650891,38.16,146.02,145.96,3.39430125]
[1750903651494,38.16,146.02,145.94,3.39430125]
[1750903651694,3.39430125,146.01,145.94,3.39430125]
[1750903651894,6.8469,145.97,145.93,6.8487]
[1750903652095,3.39430125,146.01,145.92,47.73910248]
[1750903652592,38.16,146.02,145.92,44.34480123]
[1750903652792,3.39430125,146.0,145.92,47.73910248]
[1750903653596,38.16,146.02,145.93,6.8487]
[1750903653800,3.39430125,146.0,145.93,6.8487]
[1750903654294,6.8465,145.98,145.93,6.8487]
[1750903654689,6.8487,145.94,145.91,127.4437]
[1750903654896,3.39430125,145.95,145.91,2.4437]
[1750903655193,38.16,145.97,145.91,2.4437]
[1750903655595,43.14566116,146.0,145.91,5.83800125]
[1750903655897,41.55430125,146.0,145.91,137.02280248]
[1750903656196,41.55430125,146.0,145.91,171.78850123]
[1750903656397,46.53996241,146.0,145.91,175.18280248]
[1750903656599,43.14566116,146.0,145.92,3.39430125]
[1750903656789,6.8466,145.98,145.92,3.39430125]
[1750903657390,6.8466,145.98,145.92,9.57910248]
[1750903657793,6.847,145.97,145.92,9.57910248]
[1750903658293,41.55430125,146.0,145.92,9.57910248]
[1750903658794,46.52496654,146.0,145.92,9.57910248]
[1750903658993,46.52496654,146.0,145.92,3.39430125]
[1750903659199,46.52496654,146.0,145.92,9.57910248]
[1750903659400,41.55430125,146.0,145.92,9.57910248]
[1750903659595,6.8472,145.97,145.92,9.57910248]
[1750903659896,46.52629182,146.0,145.92,9.57910248]
[1750903660099,6.8465,145.98,145.93,6.8484]
[1750903661299,41.55430125,146.0,145.93,6.8484]
[1750903661601,4.96408989,145.99,145.93,6.8484]
[1750903662700,6.8469,145.97,145.93,6.8484]
[1750903662894,4.96408989,145.99,145.93,6.8484]
[1750903663100,41.55430125,146.0,145.94,6.8483]
[1750903663495,4.96737946,145.99,145.94,6.8483]
[1750903663695,6.8461,145.99,145.94,6.8483]
[1750903663898,11.81347946,145.99,145.94,6.8483]
[1750903664201,6.8465,145.98,145.93,13.03320123]
[1750903664402,6.8465,145.98,145.93,6.8484]
[1750903665103,6.8465,145.98,145.93,13.03320123]
[1750903665307,6.8465,145.98,145.94,6.8483]
[1750903666807,38.16,146.0,145.94,3.39430125]
[1750903667000,38.16,146.0,145.94,9.57910248]
[1750903667496,45.0058,146.0,145.96,6.8473]
[1750903668101,6.846,145.99,145.95,6.8478]
[1750903670509,38.16,146.0,145.97,6.8468]
[1750903672013,38.16,146.0,145.95,6.18480123]
[1750903672313,38.16,146.0,145.95,6.19768944]
[1750903673508,5.01607168,145.99,145.95,6.19768944]
[1750903673709,6.8461,145.99,145.95,6.19768944]
[1750903673909,38.16,146.0,145.95,6.19768944]
[1750903674209,38.16,146.0,145.97,13.04458944]
[1750903675102,38.16,146.0,145.97,6.8469]
[1750903675804,38.16,146.0,145.97,13.04458944]
[1750903676510,45.0056,146.0,145.97,6.19768944]
[1750903677511,38.16,146.0,145.97,6.19768944]
[1750903677814,38.16,146.0,145.97,13.04448944]
[1750903678809,38.16,146.0,145.98,6.8464]
[1750903679212,6.8446,146.02,145.98,6.8464]
[1750903679515,6.8446,146.02,145.98,13.04408944]
[1750903680613,6.8446,146.02,145.98,6.8464]
[1750903680913,6.8456,146.0,145.97,6.19768944]
[1750903681118,3.39430125,146.02,145.96,6.19768944]
[1750903681309,5.01591147,146.01,145.97,6.19768944]
[1750903681516,7.84095269,146.02,145.97,6.19768944]
[1750903681806,5.01609163,146.01,145.97,9.59199069]
[1750903682111,38.14,146.03,145.97,9.59199069]
[1750903682717,6.8446,146.02,145.98,6.8463]
[1750903682907,38.14,146.03,145.97,6.19768944]
[1750903683512,41.53430125,146.03,145.97,6.19768944]
[1750903684012,6.8449,146.02,145.97,13.04428944]
[1750903684211,5.02146589,146.01,145.97,13.04428944]
[1750903684512,41.53430125,146.03,145.97,13.04428944]
[1750903684818,9.47815783,146.02,145.97,13.04428944]
[1750903685002,11.86698687,146.01,145.97,6.8466]
[1750903685208,5.02158687,146.0,145.97,6.8466]
[1750903685410,6.8454,146.01,145.97,6.8466]
[1750903685609,5.02217931,146.0,145.97,6.8466]
[1750903685809,6.8454,146.01,145.97,6.8466]
[1750903686012,5.02217931,146.0,145.97,6.8466]
[1750903686212,6.8454,146.01,145.97,6.8466]
[1750903686412,5.02236325,146.0,145.97,6.8466]
[1750903686612,6.8454,146.01,145.97,6.8466]
[1750903686814,5.02236325,146.0,145.97,6.8466]
[1750903687014,6.8454,146.01,145.97,6.8466]
[1750903687219,5.02236325,146.0,145.97,6.8466]
[1750903687420,6.8454,146.01,145.97,6.8466]
[1750903687621,5.02254236,146.0,145.97,6.8466]
[1750903687817,6.8447,146.02,145.98,6.8464]
[1750903688023,5.02212928,146.01,145.98,6.8464]
[1750903688217,6.8447,146.02,145.98,6.8464]
[1750903688419,5.02215444,146.01,145.98,6.8464]
[1750903688625,6.8447,146.02,145.98,6.8464]
[1750903688821,5.02201332,146.01,145.98,6.8464]
[1750903689022,6.8447,146.02,145.98,6.8464]
[1750903689219,5.02201332,146.01,145.98,6.8464]
[1750903689424,3.39430125,146.02,145.97,6.19768944]
[1750903689723,9.47951085,146.01,145.96,6.19768944]
[1750903689924,11.86851196,146.0,145.96,6.19768944]
[1750903690222,6.8459,146.0,145.96,6.19768944]
[1750903691525,40.3923,146.03,145.97,6.19768944]
[1750903691714,9.48309628,146.02,145.97,6.19768944]
[1750903691915,5.02439943,146.01,145.97,6.19768944]
[1750903692222,5.02439943,146.0,145.97,6.19768944]
[1750903692422,6.8446,146.02,145.97,13.04418944]
[1750903692623,5.02557119,146.01,145.97,9.59199069]
[1750903692823,629.82,146.08,146.0,9.59199069]
[1750903693015,4.45962446,146.07,146.02,9.58836318]
[1750903693215,629.82,146.08,146.02,6.19406193]
[1750903693426,4.45961405,146.07,146.01,16.43326318]
[1750903693723,629.82,146.08,145.99,9.58836318]
[1750903693724,7.8539153,146.06,145.99,9.58836318]
[1750903693914,4.45783268,146.05,145.99,9.58836318]
[1750903694115,6.844,146.04,145.99,16.43426318]
[1750903694922,6.8442,146.03,145.99,16.43426318]
[1750903695526,6.8442,146.03,145.99,6.19406193]
[1750903695716,6.8442,146.03,145.99,9.58836318]
[1750903696517,4.46069839,146.05,145.99,6.19406193]
[1750903696713,4.46069839,146.07,145.99,9.58836318]
[1750903696916,629.82,146.08,145.99,9.58836318]
[1750903696917,7.85499964,146.06,146.0,6.19406193]
[1750903697120,3.39430125,146.06,146.0,6.19406193]
[1750903697822,3.39430125,146.06,145.99,9.58836318]
[1750903698519,3.39430125,146.04,145.98,8.65506193]
[1750903698725,45.99030916,146.04,145.98,8.65506193]
[1750903698917,41.51430125,146.04,145.98,8.65506193]
[1750903699520,38.12,146.04,145.98,15.50136193]
[1750903700130,6.8444,146.03,145.99,6.19406193]
[1750903701128,6.8447,146.02,145.99,6.19406193]
[1750903701334,38.12,146.04,145.98,8.65506193]
[1750903701525,42.59666886,146.04,145.98,8.65506193]
[1750903702128,6.8451,146.01,145.98,8.65506193]
[1750903703827,6.8447,146.02,145.98,8.65506193]
[1750903704432,42.59666886,146.04,145.98,8.65506193]
[1750903704727,4.94587939,146.03,145.98,8.65506193]
[1750903704920,4.94558265,146.07,146.02,6.19406193]
[1750903705121,41.35430125,146.11,146.04,3.39430125]
[1750903705618,37.96,146.11,146.04,3.39430125]
[1750903706823,6.8422,146.08,146.04,3.39430125]
[1750903707027,4.4730143,146.09,146.04,3.39430125]
[1750903707333,4.4730143,146.09,146.02,138.03826193]
[1750903707334,4.94434347,146.08,146.03,3.39430125]
[1750903707524,6.8426,146.07,146.03,3.39430125]
[1750903707722,6.8426,146.07,146.03,9.58836318]
[1750903709230,9.44528845,146.09,146.03,6.19406193]
[1750903709534,3.39430125,146.07,146.01,37.96]
[1750903709735,3.39430125,146.07,145.99,127.394]
[1750903709736,3.39430125,146.05,145.99,125.0]
[1750903710132,4.96313056,146.04,145.99,125.0]
[1750903710331,6.8454,146.01,145.98,2.461]
[1750903713431,6.8454,146.01,145.98,8.64395596]
[1750903716034,6.8456,146.0,145.98,8.64395596]
[1750903716234,37.96,146.03,145.98,8.64395596]
[1750903716434,6.8451,146.01,145.98,8.64395596]
[1750903717229,6.8458,146.0,145.98,8.64395596]
[1750903718139,37.96,146.03,145.98,8.64395596]
[1750903718533,6.8452,146.01,145.98,8.64395596]
[1750903718727,37.96,146.03,145.98,8.64395596]
[1750903719237,37.96,146.03,145.99,3.39430125]
[1750903719435,37.96,146.03,145.99,9.57725721]
[1750903720135,44.8045,146.03,145.99,9.57725721]
[1750903720332,37.96,146.03,145.99,9.57725721]
[1750903720638,37.96,146.06,146.01,9.57725721]
[1750903720846,37.96,146.09,146.03,3.39430125]
[1750903721039,9.40545349,146.08,146.03,3.39430125]
[1750903721237,4.94096479,146.07,146.03,3.39430125]
[1750903721539,37.96,146.09,146.03,3.39430125]
[1750903721540,37.96,146.09,146.05,3.39430125]
[1750903721741,4.93937364,146.08,146.05,3.39430125]
[1750903721936,44.8014,146.09,146.05,3.39430125]
[1750903722239,6.8414,146.09,146.04,15.28115596]
[1750903722443,6.8414,146.09,146.05,3.39430125]
[1750903722738,5.4724,146.14,146.04,9.0982]
[1750903722739,4.4636729,146.11,146.04,2.2547]
[1750903722946,9.40013136,146.15,146.1,9.55332357]
[1750903723144,7.83404051,146.2,146.12,3.37036761]
[1750903723331,4.4636729,146.19,146.12,3.37036761]
[1750903723536,6.8381,146.16,146.12,3.36840405]
[1750903724745,7.83207695,146.18,146.09,2.2527]
[1750903725037,40.24,146.17,146.09,5.62110405]
[1750903725238,40.24,146.17,146.1,6.8408]
[1750903725442,40.24,146.17,146.11,3.36840405]
[1750903725843,6.8385,146.16,146.11,10.20840405]
[1750903726543,6.8386,146.15,146.11,3.36840405]
[1750903726743,40.24,146.17,146.11,3.36840405]
[1750903727839,6.8388,146.15,146.11,3.36840405]
[1750903728147,40.24,146.17,146.11,3.36840405]
[1750903729046,37.96,146.2,146.13,3.36840405]
[1750903730248,3.36840405,146.19,146.11,3.36840405]
[1750903730448,3.36840405,146.19,146.1,127.3176]
[1750903730449,37.96,146.2,146.1,125.0]
[1750903730647,37.94,146.27,146.19,3.36862746]
[1750903730845,7.123,146.3,146.23,3.36862746]
[1750903730846,2.2969,146.3,146.23,3.36862746]
[1750903731053,42.44646966,146.32,146.25,3.36862746]
[1750903731353,42.44646966,146.32,146.2,6.13123409]
[1750903731354,37.94,146.32,146.27,3.36862746]
[1750903731550,37.94,146.32,146.25,3.36862746]
[1750903732353,37.94,146.32,146.24,12.43852932]
[1750903732354,6.8322,146.29,146.24,12.43852932]
[1750903732551,40.1728,146.32,146.23,43.54422932]
[1750903733247,40.1728,146.32,146.23,37.94]
[1750903733447,40.1728,146.32,146.24,5.60422932]
[1750903733950,6.8324,146.29,146.24,5.60422932]
[1750903734152,40.1728,146.32,146.24,5.60422932]
[1750903734352,6.8331,146.27,146.24,5.60422932]
[1750903734547,37.94,146.32,146.23,43.54443464]
[1750903734743,45.77723464,146.32,146.23,43.54443464]
[1750903734945,6.8328,146.28,146.23,43.54443464]
[1750903736158,6.833,146.27,146.23,43.54443464]
[1750903736953,38.38,146.28,146.21,5.60443464]
[1750903737460,38.38,146.28,146.18,5.60443464]
[1750903737461,43.98443464,146.28,146.18,5.60443464]
[1750903737654,43.98443464,146.28,146.17,629.46]
[1750903737957,2.3321,146.27,146.18,5.60443464]
[1750903738452,5.60443464,146.26,146.18,5.60443464]
[1750903739261,6.8347,146.24,146.18,5.60443464]
[1750903739448,6.8347,146.24,146.18,10.41283464]
[1750903740555,6.8347,146.24,146.19,6.8365]
[1750903740757,6.835,146.23,146.18,10.41283464]
[1750903741550,6.835,146.23,146.18,17.24983464]
[1750903741853,2.3321,146.27,146.18,17.24983464]
[1750903741854,6.8343,146.24,146.18,17.24983464]
[1750903742155,2.3321,146.27,146.18,10.41283464]
[1750903742356,6.8347,146.24,146.18,10.41283464]
[1750903742856,6.8347,146.24,146.18,135.41283464]
[1750903743359,6.8347,146.24,146.18,142.24963464]
[1750903743560,7.93653464,146.27,146.18,4.8084]
[1750903743758,7.93653464,146.27,146.18,2.4499]
[1750903743955,2.4278,146.26,146.18,2.4499]
[1750903744257,4.656,146.26,146.11,2.2459]
[1750903744454,5.60443464,146.22,146.12,10.09783464]
[1750903744646,38.38,146.21,146.14,5.60443464]
[1750903744846,5.60443464,146.24,146.14,43.98443464]
[1750903745061,38.38,146.23,146.14,38.38]
[1750903745254,6.8358,146.21,146.14,38.38]
[1750903745657,38.38,146.23,146.17,6.8374]
[1750903746053,38.38,146.23,146.17,5.60443464]
[1750903746256,38.38,146.23,146.18,2.2537]
[1750903746651,6.8342,146.25,146.2,6.8361]
[1750903747661,45.2135,146.26,146.21,6.8356]
[1750903747852,38.38,146.26,146.18,51.06413464]
[1750903748361,5.60443464,146.24,146.18,43.0769]
[1750903749563,6.8349,146.23,146.18,49.914]
[1750903749765,6.8349,146.23,146.18,11.534]
[1750903750258,6.8349,146.23,146.18,4.6969]
[1750903750455,5.60443464,146.22,146.15,38.38]
[1750903750657,43.98443464,146.22,146.15,38.38]
[1750903751564,6.8363,146.2,146.15,45.2184]
[1750903751961,43.98443464,146.22,146.15,38.38]
[1750903752165,38.38,146.22,146.17,6.8375]
[1750903753051,45.2156,146.22,146.16,6.8379]
[1750903754164,6.8358,146.21,146.16,6.8379]
[1750903754860,38.38,146.22,146.15,170.2184]
[1750903754861,6.8362,146.2,146.15,170.2184]
[1750903755057,43.98443464,146.22,146.15,163.38]
[1750903755366,43.98443464,146.22,146.15,125.0]
[1750903755561,6.8365,146.2,146.15,131.8384]
[1750903755762,6.8365,146.2,146.15,125.0]
[1750903755966,43.98443464,146.22,146.15,125.0]
[1750903756967,5.60443464,146.2,146.15,125.0]
[1750903757164,5.60443464,146.2,146.13,127.2397]
[1750903757563,5.60443464,146.18,146.13,2.2397]
[1750903757762,43.98443464,146.18,146.1,125.0]
[1750903757964,6.8382,146.16,146.1,131.8404]
[1750903758265,2.4147,146.17,146.09,163.38]
[1750903758463,5.60443464,146.16,146.09,163.38]
[1750903758866,5.60443464,146.16,146.07,127.2265]
[1750903759063,5.60443464,146.14,146.07,2.2265]
[1750903759272,6.8404,146.11,146.07,2.2265]
[1750903759874,6.84,146.12,146.07,9.0687]
[1750903760569,38.38,146.13,146.07,9.0687]
[1750903760570,6.8404,146.11,146.07,2.2265]
[1750903760967,38.38,146.13,145.99,5.60443464]
[1750903761169,38.38,146.13,146.03,5.60443464]
[1750903761170,5.60443464,146.12,146.03,5.60443464]
[1750903761571,40.7658,146.13,146.03,5.60443464]
[1750903761572,6.8404,146.11,146.03,5.60443464]
[1750903762561,38.4,146.12,146.02,129.633]
[1750903762766,38.4,146.12,146.05,6.8432]
[1750903763073,6.8414,146.09,146.05,6.8432]
[1750903763274,6.8414,146.09,146.04,6.8435]
[1750903763867,6.8414,146.09,146.03,5.60443464]
[1750903764074,6.8414,146.09,146.02,10.23743464]
[1750903764271,5.60443464,146.11,146.02,4.633]
[1750903764469,5.60443464,146.11,145.99,127.4]
[1750903764470,5.60443464,146.07,145.99,127.4]
[1750903764675,5.60443464,146.07,145.99,2.4]
[1750903764676,6.8432,146.05,145.99,2.4]
[1750903765169,44.00443464,146.07,146.0,6.8452]
[1750903765371,6.8437,146.04,145.99,2.4]
[1750903765565,44.00443464,146.07,145.99,2.4]
[1750903765761,44.00443464,146.07,146.0,6.8454]
[1750903765971,6.8437,146.04,145.99,2.4]
[1750903766269,5.60443464,146.05,145.98,2.3401]
[1750903766468,6.8452,146.01,145.98,2.3401]
[1750903766775,43.72443464,146.03,145.95,172.63329036]
[1750903766965,6.847,145.97,145.9,125.0]
[1750903767165,43.72443464,145.97,145.88,8.33190542]
[1750903767365,43.72443464,145.97,145.87,163.12]
[1750903767561,43.72443464,145.97,145.87,168.72443464]
[1750903767967,6.8488,145.94,145.88,6.8511]
[1750903768162,38.12,145.97,145.87,163.12]
[1750903768163,5.60443464,145.95,145.87,38.12]
[1750903768368,5.60443464,145.95,145.87,163.12]
[1750903768563,38.12,145.97,145.87,163.12]
[1750903768767,38.12,145.97,145.9,5.60443464]
[1750903768978,38.12,145.97,145.9,130.60443464]
[1750903769176,38.12,145.97,145.9,125.0]
[1750903770066,5.60443464,145.96,145.9,125.0]
[1750903770264,38.12,145.97,145.86,10.20843464]
[1750903770265,5.60443464,145.94,145.86,4.604]
[1750903770473,38.14,145.93,145.86,4.604]
[1750903770675,38.14,145.96,145.87,5.63181324]
[1750903770980,38.14,145.96,145.89,5.63181324]
[1750903771276,44.9876,145.96,145.9,6.8501]
[1750903771579,38.14,145.96,145.89,5.63181324]
[1750903771765,38.14,145.96,145.89,7.93241324]
[1750903773579,38.14,146.01,145.93,5.63181324]
[1750903773778,38.14,146.01,145.92,38.14]
[1750903773982,38.14,146.01,145.93,5.63181324]
[1750903774873,38.14,146.01,145.93,12.48041324]
[1750903774874,6.8461,145.99,145.93,12.48041324]
[1750903775076,38.14,146.01,145.93,6.8486]
[1750903775383,38.14,146.01,145.93,5.63181324]
[1750903776769,6.8467,145.98,145.93,5.63181324]
[1750903776982,6.8467,145.98,145.92,38.14]
[1750903777284,6.8467,145.98,145.92,43.77181324]
[1750903777485,6.8467,145.98,145.92,50.62101324]
[1750903779078,38.14,145.97,145.89,180.3606]
[1750903779284,38.14,145.97,145.9,5.63181324]
[1750903780181,38.14,145.97,145.89,180.3606]
[1750903780477,5.63181324,145.96,145.89,178.06]
[1750903780785,4.7099,146.02,145.89,130.63139193]
[1750903780988,4.7099,146.02,145.86,64.3401]
[1750903780989,38.14,146.04,145.95,5.62627803]
[1750903781284,6.8459,146.0,145.95,5.62627803]
[1750903781586,43.76627803,146.03,145.93,43.76627803]
[1750903781891,2.3769,146.02,145.93,50.61467803]
[1750903782186,2.3769,146.02,145.93,12.47467803]
[1750903782489,6.8473,145.97,145.93,5.62627803]
[1750903782792,38.16,145.98,145.92,2.3873]
[1750903783085,5.62627803,145.97,145.87,10.18797803]
[1750903783485,2.3769,145.96,145.87,10.18797803]
[1750903783692,2.3769,145.96,145.86,40.5001]
[1750903783881,6.8491,145.93,145.87,6.8512]
[1750903784080,38.16,145.93,145.87,6.8512]
[1750903784381,38.16,145.93,145.86,40.5001]
[1750903784581,6.8501,145.91,145.86,40.5001]
[1750903784779,38.16,145.93,145.86,46.12637803]
[1750903785287,38.16,145.93,145.88,6.8507]
[1750903785792,38.16,145.96,145.88,5.63152803]
[1750903785984,38.16,145.96,145.86,165.5001]
[1750903786183,38.16,145.96,145.89,5.63152803]
[1750903786385,6.8485,145.94,145.89,6.8503]
[1750903787399,5.63089284,145.93,145.84,5.63089284]
[1750903787689,5.63089284,145.95,145.84,8.06649284]
[1750903787882,6.8496,145.92,145.87,6.8516]
[1750903788085,5.63089284,145.95,145.84,8.06649284]
[1750903788383,5.63089284,145.93,145.84,8.06649284]
[1750903788583,40.42,145.92,145.84,2.4356]
[1750903788779,38.16,145.91,145.84,2.4356]
[1750903788989,6.851,145.89,145.84,9.2885]
[1750903790288,6.8512,145.88,145.84,2.4356]
[1750903790790,6.8516,145.87,145.84,2.4356]
[1750903791486,6.8522,145.86,145.82,38.16]
[1750903791693,5.63089284,145.89,145.82,38.16]
[1750903791883,5.63089284,145.89,145.82,45.0139]
[1750903792083,6.8521,145.86,145.82,38.16]
[1750903792286,6.8521,145.86,145.8,4.5116]
[1750903792487,38.16,145.91,145.81,5.63089284]
[1750903792993,38.16,145.91,145.83,5.63089284]
[1750903793685,6.8515,145.88,145.83,12.48409284]
[1750903793893,6.8515,145.88,145.83,5.63089284]
[1750903794290,43.81089284,145.91,145.83,5.63089284]
[1750903794593,43.81089284,145.91,145.81,5.63089284]
[1750903794795,6.8517,145.87,145.83,6.8531]
[1750903795086,6.8517,145.87,145.8,66.5116]
[1750903795285,5.63089284,145.9,145.82,6.8539]
[1750903797599,6.8522,145.86,145.81,6.8543]
[1750903798695,5.63089284,145.9,145.8,10.14249284]
[1750903798894,5.63089284,145.9,145.82,5.63089284]
[1750903799201,38.18,145.91,145.82,5.63089284]
[1750903799388,6.8515,145.88,145.83,6.8531]
[1750903799989,6.8515,145.88,145.84,6.8529]
[1750903800392,6.8515,145.88,145.82,5.63089284]
[1750903800694,6.8515,145.88,145.83,6.8532]
[1750903800897,6.8505,145.9,145.82,5.63089284]
[1750903801092,6.8505,145.9,145.84,5.63089284]
[1750903801293,39.24,145.91,145.84,5.63089284]
[1750903801493,6.851,145.89,145.84,5.63089284]
[1750903801797,39.24,145.91,145.8,129.5116]
[1750903801995,6.8513,145.88,145.8,135.14249284]
[1750903802689,6.8507,145.89,145.8,135.14249284]
[1750903803294,6.8513,145.88,145.83,6.8532]
[1750903804194,6.8513,145.88,145.84,6.8529]
[1750903804394,6.851,145.89,145.84,6.8529]
[1750903804902,6.8512,145.88,145.84,6.8529]
[1750903805197,44.87089284,145.91,145.85,6.8525]
[1750903805496,6.8508,145.89,145.85,6.8525]
[1750903806396,20.5446,146.06,145.88,5.63151388]
[1750903806598,53.84284709,146.0,145.88,39.24]
[1750903806899,6.8476,145.96,145.91,12.47867538]
[1750903807296,4.29593321,145.98,145.91,12.47867538]
[1750903807297,4.29593321,145.97,145.91,5.62927538]
[1750903807597,43.9154,146.0,145.89,2.444]
[1750903807598,4.29593321,145.99,145.93,5.62927538]
[1750903807798,48.21133321,146.0,145.93,5.62927538]
[1750903807999,45.88593321,146.0,145.95,5.62927538]
[1750903808201,46.0858,146.0,145.95,12.47677538]
[1750903808493,46.0858,146.0,145.92,39.24]
[1750903808494,39.24,146.03,145.97,5.62927538]
[1750903808692,6.845,146.02,145.97,5.62927538]
[1750903808898,9.93406918,146.01,145.92,164.24]
[1750903811402,39.24,146.06,145.98,5.62927538]
[1750903811596,39.24,146.06,146.0,5.62927538]
[1750903812003,39.24,146.06,146.01,5.62927538]
[1750903812202,4.31723074,146.07,146.01,5.62927538]
[1750903812411,39.24,146.09,146.02,2.2305]
[1750903812706,39.24,146.09,146.03,5.62927538]
[1750903813304,39.24,146.12,146.05,5.62927538]
[1750903813698,39.24,146.12,146.07,5.62927538]
[1750903813899,45.77742804,146.15,146.07,5.62927538]
[1750903814196,39.24,146.15,146.07,5.62927538]
[1750903814396,2.3977,146.23,146.11,5.62927538]
[1750903814397,39.24,146.18,146.11,5.62927538]
[1750903815096,6.8375,146.18,146.12,39.22]
[1750903815596,39.22,146.21,146.13,5.62927538]
[1750903815793,2.2697,146.22,146.13,5.62927538]
[1750903816002,39.22,146.24,146.15,5.62927538]
[1750903816398,44.84927538,146.24,146.15,5.62927538]
[1750903816801,5.62927538,146.22,146.13,2.3723]
[1750903817004,39.22,146.24,146.12,5.62927538]
[1750903817005,5.62927538,146.2,146.12,5.62927538]
[1750903817205,5.62927538,146.14,146.05,44.84927538]
[1750903817405,5.62927538,146.12,146.05,2.3725]
[1750903817608,5.62927538,146.1,146.05,2.3725]
[1750903818208,47.8316278,146.12,146.05,2.3725]
[1750903818611,39.22,146.12,146.05,2.3725]
[1750903818807,8.6116278,146.14,146.06,39.2]
[1750903819004,6.8403,146.12,146.06,39.2]
[1750903819309,8.6116278,146.14,146.06,39.2]
[1750903820212,11.0691278,146.14,146.06,39.2]
[1750903820397,39.2,146.17,146.06,39.2]
[1750903820709,47.8116278,146.17,146.07,8.6116278]
[1750903821415,47.8116278,146.17,146.09,6.8413]
[1750903822006,47.8116278,146.17,146.07,8.6116278]
[1750903824514,6.8381,146.16,146.1,6.8408]
[1750903825312,6.8381,146.16,146.07,8.6116278]
[1750903825505,6.8381,146.16,146.07,133.6116278]
[1750903826112,6.8381,146.16,146.1,6.8408]
[1750903826299,6.8386,146.15,146.1,6.8408]
[1750903826816,6.8381,146.16,146.11,6.8403]
[1750903827014,4.7937,146.19,146.11,125.0]
[1750903827210,2.41,146.19,146.11,125.0]
[1750903827420,2.41,146.19,146.11,127.3924]
[1750903828028,6.8376,146.17,146.11,134.2327]
[1750903829206,2.41,146.19,146.11,127.3924]
[1750903829413,2.41,146.19,146.1,45.8008]
[1750903829414,8.6116278,146.18,146.1,38.96]